fUSD/lending_fUSD_20240227
["ID","MTS","AMOUNT","RATE_DAILY","PERIOD"]
[315445474,1709039470377,-1575.11,0.00022999,2]
[315445475,1709039470387,-2406.62,0.00022999,2]
[315445476,1709039470397,-1575.11,0.00022999,2]
[315445477,1709039470406,-2406.62,0.00022999,2]
[315445478,1709039470415,-1575.11,0.00022999,2]
[315445479,1709039470424,-2406.62,0.00022999,2]
[315445480,1709039470434,-1575.11,0.00022999,2]
[315445481,1709039470443,-2406.62,0.00022999,2]
[315445482,1709039470453,-1575.11,0.00022999,2]
[315445483,1709039470462,-500.0,0.00022999,2]
[315445484,1709039470471,-1575.11,0.00022999,2]
[315445485,1709039470481,-1575.17224444,0.00022999,2]
[315445486,1709039470491,-500.0,0.00022999,2]
[315445487,1709039470500,-500.0,0.00022999,2]
[315445488,1709039470509,-500.0,0.00022999,2]
[315445489,1709039470519,-500.0,0.00022999,2]
[315445490,1709039470528,-518.01,0.00022999,2]
[315445491,1709039470538,-500.0,0.00022999,2]
[315445492,1709039470547,-500.0,0.00022999,2]
[315445493,1709039470556,-500.0,0.00022999,2]
[315445494,1709039470565,-500.0,0.00022999,2]
[315445495,1709039470575,-500.0,0.00022999,2]
[315445496,1709039470585,-500.0,0.00022999,2]
[315445497,1709039470594,-500.0,0.00022999,2]
[315445498,1709039470602,-500.0,0.00022999,2]
[315445499,1709039470612,-279.85,0.00022999,2]
[315445500,1709039470621,-500.0,0.00022999,2]
[315445501,1709039470630,-500.0,0.00022999,2]
[315445502,1709039470640,-232.85,0.00022999,2]
[315445503,1709039470649,-500.0,0.00022999,2]
[315445504,1709039470658,-638.97,0.00022999,2]
[315445505,1709039470667,-1362.92,0.00022999,2]
[315445506,1709039470676,-1362.92,0.00022999,2]
[315445507,1709039470685,-1362.92,0.00022999,2]
[315445508,1709039470694,-1362.92,0.00022999,2]
[315445509,1709039470704,-1362.92,0.00022999,2]
[315445510,1709039470713,-1362.92,0.00022999,2]
[315445511,1709039470723,-1627.11,0.00022999,2]
[315445512,1709039470733,-1362.92,0.00022999,2]
[315445513,1709039470742,-1627.11,0.00022999,2]
[315445514,1709039470752,-922.09,0.00022999,2]
[315445515,1709039470763,-1362.92,0.00022999,2]
[315445516,1709039470772,-1627.11,0.00022999,2]
[315445517,1709039470782,-922.09,0.00022999,2]
[315445518,1709039470794,-1627.11,0.00022999,2]
[315445519,1709039470804,-922.09,0.00022999,2]
[315445520,1709039470813,-1362.92,0.00022999,2]
[315445521,1709039470825,-1627.11,0.00022999,2]
[315445522,1709039470835,-922.09,0.00022999,2]
[315445523,1709039470844,-1362.92609846,0.00022999,2]
[315445524,1709039470852,-1627.11,0.00022999,2]
[315445525,1709039470862,-922.09,0.00022999,2]
[315445526,1709039470872,-922.09,0.00022999,2]
[315445527,1709039470882,-500.0,0.00022999,2]
[315445528,1709039470893,-500.0,0.00022999,2]
[315445529,1709039470903,-500.0,0.00022999,2]
[315445530,1709039470912,-500.0,0.00022999,2]
[315445531,1709039470921,-500.0,0.00022999,2]
[315445532,1709039470931,-500.0,0.00022999,2]
[315445533,1709039470941,-373.81531006,0.00022999,2]
[315445534,1709039470951,-500.0,0.00022999,2]
[315445535,1709039470960,-405.54,0.00022999,2]
[315445536,1709039470970,-500.0,0.00022999,2]
[315445537,1709039470979,-500.0,0.00022999,2]
[315445538,1709039470988,-500.0,0.00022999,2]
[315445539,1709039470998,-500.0,0.00022999,2]
[315445540,1709039471007,-500.0,0.00022999,2]
[315445541,1709039471017,-500.0,0.00022999,2]
[315445542,1709039471026,-500.0,0.00022999,2]
[315445543,1709039471036,-930.18,0.00022999,2]
[315445544,1709039471045,-500.0,0.00022999,2]
[315445545,1709039471054,-500.0,0.00022999,2]
[315445546,1709039471065,-930.18,0.00022999,2]
[315445547,1709039471074,-516.12,0.00022999,2]
[315445548,1709039471084,-500.0,0.00022999,2]
[315445549,1709039471093,-930.18,0.00022999,2]
[315445550,1709039471103,-500.0,0.00022999,2]
[315445551,1709039471113,-500.0,0.00022999,2]
[315445552,1709039471124,-930.18,0.00022999,2]
[315445553,1709039471133,-500.0,0.00022999,2]
[315445554,1709039471144,-930.18,0.00022999,2]
[315445555,1709039471153,-250.32718297,0.00022999,2]
[315445556,1709039471162,-930.18,0.00022999,2]
[315445557,1709039471171,-500.0,0.00022999,2]
[315445558,1709039471180,-500.0,0.00022999,2]
[315445559,1709039471189,-500.0,0.00022999,2]
[315445560,1709039471198,-500.0,0.00022999,2]
[315445561,1709039471207,-500.0,0.00022999,2]
[315445562,1709039471216,-5484.79,0.00022999,2]
[315445563,1709039471226,-338.4,0.00022999,2]
[315445564,1709039471235,-5484.79,0.00022999,2]
[315445565,1709039471245,-5484.79,0.00022999,2]
[315445566,1709039471256,-622.23,0.00022999,2]
[315445567,1709039471264,-5484.79,0.00022999,2]
[315445568,1709039471274,-622.23,0.00022999,2]
[315445569,1709039471283,-2796.93,0.00022999,2]
[315445570,1709039471294,-5484.79,0.00022999,2]
[315445571,1709039471303,-622.23,0.00022999,2]
[315445572,1709039471313,-2796.93,0.00022999,2]
[315445573,1709039471322,-5484.79,0.00022999,2]
[315445574,1709039471431,-2796.93,0.00022999,2]
[315445575,1709039471452,-622.23,0.00022999,2]
[315445576,1709039471464,-5484.79,0.00022999,2]
[315445577,1709039471473,-2796.93,0.00022999,2]
[315445578,1709039471483,-622.23,0.00022999,2]
[315445579,1709039471492,-5484.79,0.00022999,2]
[315445580,1709039471501,-2796.93,0.00022999,2]
[315445581,1709039471512,-5484.79,0.00022999,2]
[315445582,1709039471521,-2796.93,0.00022999,2]
[315445583,1709039471530,-5484.99586521,0.00022999,2]
[315445584,1709039471539,-2994.23,0.00022999,2]
[315445585,1709039471549,-2994.23,0.00022999,2]
[315445586,1709039471558,-2994.23,0.00022999,2]
[315445587,1709039471567,-2994.23,0.00022999,2]
[315445588,1709039471577,-2994.23,0.00022999,2]
[315445589,1709039471586,-2994.23,0.00022999,2]
[315445590,1709039471596,-502.47,0.00022999,2]
[315445591,1709039471605,-744.02,0.00022999,2]
[315445592,1709039471614,-744.02,0.00022999,2]
[315445593,1709039471624,-502.47,0.00022999,2]
[315445594,1709039471633,-744.02,0.00022999,2]
[315445595,1709039471644,-744.02,0.00022999,2]
[315445596,1709039471653,-502.47,0.00022999,2]
[315445597,1709039471663,-744.02,0.00022999,2]
[315445598,1709039471672,-744.02,0.00022999,2]
[315445599,1709039471681,-744.02,0.00022999,2]
[315445600,1709039471690,-744.02,0.00022999,2]
[315445601,1709039471699,-744.02,0.00022999,2]
[315445602,1709039471708,-744.18,0.00022999,2]
[315445603,1709039471718,-1160.79,0.00022999,2]
[315445604,1709039471728,-1160.79,0.00022999,2]
[315445605,1709039471737,-777.69,0.00022999,2]
[315445606,1709039471746,-777.69,0.00022999,2]
[315445607,1709039471755,-1160.79,0.00022999,2]
[315445608,1709039471769,-777.69,0.00022999,2]
[315445609,1709039471779,-1160.79,0.00022999,2]
[315445610,1709039471788,-777.69,0.00022999,2]
[315445611,1709039471798,-1160.79,0.00022999,2]
[315445612,1709039471807,-777.69,0.00022999,2]
[315445613,1709039471817,-777.69,0.00022999,2]
[315445614,1709039471826,-1160.79,0.00022999,2]
[315445615,1709039471836,-1160.79,0.00022999,2]
[315445616,1709039471846,-502.47,0.00022999,2]
[315445617,1709039471855,-502.47,0.00022999,2]
[315445618,1709039471864,-1160.79,0.00022999,2]
[315445619,1709039471875,-1160.79,0.00022999,2]
[315445620,1709039471884,-1160.93347267,0.00022999,2]
[315445621,1709039471895,-2166.21,0.00022999,2]
[315445622,1709039471904,-2166.21,0.00022999,2]
[315445623,1709039471914,-2166.21,0.00022999,2]
[315445624,1709039471923,-2166.21,0.00022999,2]
[315445625,1709039471932,-2166.21,0.00022999,2]
[315445626,1709039471942,-2166.21,0.00022999,2]
[315445627,1709039471952,-500.0,0.00022999,2]
[315445628,1709039471963,-507.7,0.00022999,2]
[315445629,1709039471972,-385.08,0.00022999,2]
[315445630,1709039471983,-507.7,0.00022999,2]
[315445631,1709039471993,-507.7,0.00022999,2]
[315445632,1709039472003,-507.7,0.00022999,2]
[315445633,1709039472012,-507.7,0.00022999,2]
[315445634,1709039472023,-1889.26,0.00022999,2]
[315445635,1709039472033,-1889.26,0.00022999,2]
[315445636,1709039472044,-1889.26,0.00022999,2]
[315445637,1709039472055,-1889.26,0.00022999,2]
[315445638,1709039472065,-1889.26,0.00022999,2]
[315445639,1709039472075,-1889.26,0.00022999,2]
[315445640,1709039472085,-1889.26,0.00022999,2]
[315445641,1709039472095,-1889.26,0.00022999,2]
[315445642,1709039472104,-1889.26,0.00022999,2]
[315445643,1709039472114,-1889.26,0.00022999,2]
[315445644,1709039472124,-2371.42,0.00022999,2]
[315445645,1709039472134,-2371.42,0.00022999,2]
[315445646,1709039472146,-2371.42,0.00022999,2]
[315445647,1709039472156,-814.15,0.00022999,2]
[315445648,1709039472166,-2371.42,0.00022999,2]
[315445649,1709039472176,-814.15,0.00022999,2]
[315445650,1709039472186,-2371.42,0.00022999,2]
[315445651,1709039472196,-814.15,0.00022999,2]
[315445652,1709039472207,-814.15,0.00022999,2]
[315445653,1709039472217,-814.15,0.00022999,2]
[315445654,1709039472228,-814.15,0.00022999,2]
[315445655,1709039472238,-1110.43,0.00022999,2]
[315445656,1709039472249,-1110.43,0.00022999,2]
[315445657,1709039472258,-1110.43,0.00022999,2]
[315445658,1709039472268,-1110.43,0.00022999,2]
[315445659,1709039472277,-1110.43,0.00022999,2]
[315445660,1709039472287,-1110.43,0.00022999,2]
[315445661,1709039472296,-1110.43,0.00022999,2]
[315445662,1709039472306,-1110.43,0.00022999,2]
[315445663,1709039472315,-1110.43,0.00022999,2]
[315445664,1709039472325,-1110.51,0.00022999,2]
[315445665,1709039472334,-500.0,0.00022999,2]
[315445666,1709039472344,-500.0,0.00022999,2]
[315445667,1709039472353,-500.0,0.00022999,2]
[315445668,1709039472363,-500.0,0.00022999,2]
[315445669,1709039472372,-500.0,0.00022999,2]
[315445670,1709039472382,-500.0,0.00022999,2]
[315445671,1709039472392,-500.0,0.00022999,2]
[315445672,1709039472402,-500.0,0.00022999,2]
[315445673,1709039472411,-500.0,0.00022999,2]
[315445674,1709039472420,-500.0,0.00022999,2]
[315445675,1709039472430,-500.0,0.00022999,2]
[315445676,1709039472439,-500.0,0.00022999,2]
[315445677,1709039472449,-500.0,0.00022999,2]
[315445678,1709039472459,-500.0,0.00022999,2]
[315445679,1709039472468,-500.0,0.00022999,2]
[315445680,1709039472477,-594.08,0.00022999,2]
[315445681,1709039472486,-500.0,0.00022999,2]
[315445682,1709039472496,-500.0,0.00022999,2]
[315445683,1709039472505,-500.0,0.00022999,2]
[315445684,1709039472515,-500.0,0.00022999,2]
[315445685,1709039472524,-744.62,0.00022999,2]
[315445686,1709039472534,-621.94,0.00022999,2]
[315445687,1709039472544,-207.2,0.00022999,2]
[315445688,1709039472553,-744.62,0.00022999,2]
[315445689,1709039472562,-744.62,0.00022999,2]
[315445690,1709039472572,-744.62,0.00022999,2]
[315445691,1709039472582,-744.62,0.00022999,2]
[315445692,1709039472591,-744.62,0.00022999,2]
[315445693,1709039472600,-594.76,0.00022999,2]
[315445694,1709039472610,-594.76,0.00022999,2]
[315445695,1709039472619,-594.76,0.00022999,2]
[315445696,1709039472629,-594.76,0.00022999,2]
[315445697,1709039472638,-594.76,0.00022999,2]
[315445698,1709039472648,-594.76,0.00022999,2]
[315445699,1709039472657,-654.26,0.00022999,2]
[315445700,1709039472667,-654.26,0.00022999,2]
[315445701,1709039472676,-654.26,0.00022999,2]
[315445702,1709039472685,-3683.96,0.00022999,2]
[315445703,1709039472694,-654.26,0.00022999,2]
[315445704,1709039472703,-654.26,0.00022999,2]
[315445705,1709039472712,-654.26,0.00022999,2]
[315445706,1709039472721,-654.26,0.00022999,2]
[315445707,1709039472731,-654.26,0.00022999,2]
[315445708,1709039472740,-500.0,0.00022999,2]
[315445709,1709039472750,-654.26,0.00022999,2]
[315445710,1709039472760,-500.0,0.00022999,2]
[315445711,1709039472770,-654.42,0.00022999,2]
[315445712,1709039472782,-500.0,0.00022999,2]
[315445713,1709039472792,-3683.96,0.00022999,2]
[315445714,1709039472803,-500.0,0.00022999,2]
[315445715,1709039472812,-3683.96,0.00022999,2]
[315445716,1709039472822,-500.0,0.00022999,2]
[315445717,1709039472832,-3683.96,0.00022999,2]
[315445718,1709039472842,-500.0,0.00022999,2]
[315445719,1709039472853,-3683.96,0.00022999,2]
[315445720,1709039472862,-3683.96,0.00022999,2]
[315445721,1709039472872,-3683.96,0.00022999,2]
[315445722,1709039472881,-1344.36,0.00022999,2]
[315445723,1709039472892,-3683.96,0.00022999,2]
[315445724,1709039472901,-1344.36,0.00022999,2]
[315445725,1709039472911,-1344.36,0.00022999,2]
[315445726,1709039472920,-1344.36,0.00022999,2]
[315445727,1709039472930,-3683.96,0.00022999,2]
[315445728,1709039472939,-1344.36,0.00022999,2]
[315445729,1709039472948,-3684.14833253,0.00022999,2]
[315445730,1709039472957,-1344.36,0.00022999,2]
[315445731,1709039472967,-871.25,0.00022999,2]
[315445732,1709039472977,-871.25,0.00022999,2]
[315445733,1709039472986,-871.25,0.00022999,2]
[315445734,1709039472996,-871.25,0.00022999,2]
[315445735,1709039473006,-636.38,0.00022999,2]
[315445736,1709039473016,-871.25,0.00022999,2]
[315445737,1709039473026,-636.38,0.00022999,2]
[315445738,1709039473035,-636.38,0.00022999,2]
[315445739,1709039473044,-500.0,0.00022999,2]
[315445740,1709039473053,-636.38,0.00022999,2]
[315445741,1709039473063,-500.0,0.00022999,2]
[315445742,1709039473072,-636.38,0.00022999,2]
[315445743,1709039473081,-500.0,0.00022999,2]
[315445744,1709039473090,-636.38,0.00022999,2]
[315445745,1709039473099,-500.0,0.00022999,2]
[315445746,1709039473108,-636.38,0.00022999,2]
[315445747,1709039473118,-636.38,0.00022999,2]
[315445748,1709039473127,-500.0,0.00022999,2]
[315445749,1709039473138,-843.31,0.00022999,2]
[315445750,1709039473147,-636.38,0.00022999,2]
[315445751,1709039473156,-500.0,0.00022999,2]
[315445752,1709039473166,-843.31,0.00022999,2]
[315445753,1709039473175,-500.0,0.00022999,2]
[315445754,1709039473185,-843.31,0.00022999,2]
[315445755,1709039473194,-636.38,0.00022999,2]
[315445756,1709039473203,-843.31,0.00022999,2]
[315445757,1709039473213,-500.0,0.00022999,2]
[315445758,1709039473222,-843.31,0.00022999,2]
[315445759,1709039473232,-843.31,0.00022999,2]
[315445760,1709039473241,-710.45,0.00022999,2]
[315445761,1709039473250,-710.45,0.00022999,2]
[315445762,1709039473260,-710.45,0.00022999,2]
[315445763,1709039473270,-710.45,0.00022999,2]
[315445764,1709039473279,-710.45,0.00022999,2]
[315445765,1709039473288,-710.45,0.00022999,2]
[315445766,1709039473297,-500.0,0.00022999,2]
[315445767,1709039473306,-500.0,0.00022999,2]
[315445768,1709039473315,-508.2,0.00022999,2]
[315445769,1709039473324,-641.5,0.00022999,2]
[315445770,1709039473333,-641.5,0.00022999,2]
[315445771,1709039473343,-641.5,0.00022999,2]
[315445772,1709039473354,-892885.27353071,0.00023,2]
[315445773,1709039473363,-8945.00715781,0.00023,2]
[315445774,1709039473372,-1209.81995107,0.00023,2]
[315445775,1709039473381,-437.08143572,0.00023,2]
[315445776,1709039473391,-522276.24089594,0.00023,2]
[315445777,1709039473401,-586.0,0.00023,2]
[315445778,1709039473505,-7476.15227341,0.00023,2]
[315445779,1709039473523,-150.0,0.00023,2]
[315445780,1709039473533,-739.62,0.00023027,2]
[315445781,1709039473544,-500.0,0.00023027,2]
[315445782,1709039473554,-500.0,0.00023027,2]
[315445783,1709039473565,-500.0,0.00023027,2]
[315445784,1709039473575,-622.23,0.00023027,2]
[315445785,1709039473585,-502.47,0.00023027,2]
[315445786,1709039473594,-507.7,0.00023027,2]
[315445787,1709039473604,-2371.42,0.00023027,2]
[315445788,1709039473614,-871.25,0.00023027,2]
[315445789,1709039473624,-927.51,0.00023037,2]
[315445790,1709039473634,-437.444,0.00023079,2]
[315445791,1709039473645,-1196.259,0.00023079,2]
[315445792,1709039473653,-162.0,0.00023079,2]
[315445793,1709039473662,-302.0,0.00023079,2]
[315445794,1709039473671,-1805.355295,0.00023082,2]
[315445795,1709039473680,-200.0,0.00023154,2]
[315445796,1709039473690,-1805.355295,0.00023173,2]
[315445797,1709039473700,-163.53,0.00023233,2]
[315445798,1709039473710,-1805.355295,0.00023264,2]
[315445799,1709039473719,-2000.0,0.000233,2]
[315445800,1709039473730,-505.57644468,0.00023314,2]
[315445801,1709039473740,-1385.99310056,0.00023314,2]
[315445802,1709039473750,-423.34129905,0.00023314,2]
[315445803,1709039473761,-1603.92486616,0.00023314,2]
[315445804,1709039473772,-200.0,0.00023323,2]
[315445805,1709039473782,-800.0,0.00023323,2]
[315445806,1709039473791,-200.0,0.00023323,2]
[315445807,1709039473800,-500.0,0.00023323,2]
[315445808,1709039473810,-200.0,0.00023323,2]
[315445809,1709039473820,-738.75,0.00023338,2]
[315445810,1709039473829,-3416.36,0.00023338,2]
[315445811,1709039473840,-500.0,0.00023338,2]
[315445812,1709039473851,-1323.85,0.00023338,2]
[315445813,1709039473860,-1627.11,0.00023338,2]
[315445814,1709039473869,-2796.93,0.00023338,2]
[315445815,1709039473879,-777.69,0.00023338,2]
[315445816,1709039473889,-2166.21,0.00023338,2]
[315445817,1709039473899,-814.15,0.00023338,2]
[315445818,1709039473908,-594.76,0.00023338,2]
[315445819,1709039473918,-1344.36,0.00023338,2]
[315445820,1709039473928,-710.45,0.00023338,2]
[315445821,1709039473938,-1805.355295,0.00023355,2]
[315445822,1709039473949,-1000.0,0.00023365,2]
[315445823,1709039473959,-204.0,0.0002337,5]
[315445824,1709039473969,-193.6326841,0.0002339,2]
[315445825,1709039473979,-556.23,0.0002339,2]
[315445826,1709039473991,-1805.355295,0.00023445,2]
[315445827,1709039474000,-500.0,0.00023452,2]
[315445828,1709039474009,-1805.355295,0.00023536,2]
[315445829,1709039474019,-152.9106692,0.00023558,2]
[315445830,1709039474029,-1805.355295,0.00023627,2]
[315445831,1709039474039,-163.53,0.00023671,2]
[315445832,1709039474050,-1805.355295,0.00023718,2]
[315445833,1709039474059,-150.0,0.00023726,2]
[315445834,1709039474069,-150.0,0.00023727,2]
[315445835,1709039474078,-150.0,0.00023729,2]
[315445836,1709039474089,-150.0,0.00023758,2]
[315445837,1709039474099,-6894.05344456,0.0002376,2]
[315445838,1709039474108,-150.0,0.0002376,2]
[315445839,1709039474118,-150.0,0.00023771,2]
[315445840,1709039474128,-150.0,0.00023773,2]
[315445841,1709039474138,-150.0,0.00023774,2]
[315445842,1709039474148,-150.0,0.0002378,2]
[315445843,1709039474157,-150.0,0.00023796,2]
[315445844,1709039474166,-927.51,0.00023796,2]
[315445845,1709039474176,-541.66,0.00023797,2]
[315445846,1709039474186,-500.0,0.00023797,2]
[315445847,1709039474196,-500.0,0.00023797,2]
[315445848,1709039474206,-500.0,0.00023797,2]
[315445849,1709039474217,-575.55,0.00023797,2]
[315445850,1709039474227,-628.22,0.00023797,2]
[315445851,1709039474236,-500.0,0.00023797,2]
[315445852,1709039474245,-718.07,0.00023797,2]
[315445853,1709039474255,-500.0,0.00023797,2]
[315445854,1709039474264,-500.0,0.00023797,2]
[315445855,1709039474274,-150.0,0.00023797,2]
[315445856,1709039474283,-927.51,0.00023797,2]
[315445857,1709039474292,-927.51,0.00023797,2]
[315445858,1709039474302,-927.51,0.00023797,2]
[315445859,1709039474311,-500.0,0.00023797,2]
[315445860,1709039474320,-500.0,0.00023797,2]
[315445861,1709039474329,-500.0,0.00023797,2]
[315445862,1709039474339,-500.0,0.00023797,2]
[315445863,1709039474349,-798.7,0.00023797,2]
[315445864,1709039474358,-723.47,0.00023797,2]
[315445865,1709039474367,-500.0,0.00023797,2]
[315445866,1709039474376,-500.0,0.00023797,2]
[315445867,1709039474385,-670.09,0.00023797,2]
[315445868,1709039474395,-705.73,0.00023797,2]
[315445869,1709039474405,-500.0,0.00023797,2]
[315445870,1709039474415,-500.0,0.00023797,2]
[315445871,1709039474425,-1454.93,0.00023797,2]
[315445872,1709039474436,-638.61,0.00023797,2]
[315445873,1709039474447,-500.0,0.00023797,2]
[315445874,1709039474456,-587.25,0.00023797,2]
[315445875,1709039474466,-500.0,0.00023797,2]
[315445876,1709039474476,-1776.37,0.00023797,2]
[315445877,1709039474485,-2406.62,0.00023797,2]
[315445878,1709039474495,-922.09,0.00023797,2]
[315445879,1709039474504,-930.18,0.00023797,2]
[315445880,1709039474514,-2994.23,0.00023797,2]
[315445881,1709039474525,-744.62,0.00023797,2]
[315445882,1709039474534,-500.0,0.00023797,2]
[315445883,1709039474544,-500.0,0.00023797,2]
[315445884,1709039474554,-843.31,0.00023797,2]
[315445885,1709039474564,-162.6257829,0.00023798,2]
[315445886,1709039474573,-162.62578285,0.00023798,2]
[315445887,1709039474584,-162.62578285,0.00023798,2]
[315445888,1709039474594,-162.62578285,0.00023798,2]
[315445889,1709039474604,-162.62578285,0.00023798,2]
[315445890,1709039474614,-162.62578285,0.00023798,2]
[315445891,1709039474623,-12407.2479469,0.00023798,2]
[315445892,1709039474633,-12407.24794687,0.00023798,2]
[315445893,1709039474644,-12407.24794687,0.00023798,2]
[315445894,1709039474653,-12407.24794687,0.00023798,2]
[315445895,1709039474662,-12407.24794687,0.00023798,2]
[315445896,1709039474671,-12407.24794687,0.00023798,2]
[315445897,1709039474681,-12407.24794687,0.00023798,2]
[315445898,1709039474692,-8294.78732948,0.00023798,2]
[315445899,1709039475031,-500.0,0.00022739,2]
[315445900,1709039475041,-4112.46061739,0.00023798,2]
[315445901,1709039475050,-12407.24794687,0.00023798,2]
[315445902,1709039475060,-150.0,0.000238,2]
[315445903,1709039475070,-150.0,0.00023803,2]
[315445904,1709039475079,-150.0,0.00023805,2]
[315445905,1709039475088,-1805.355295,0.00023809,2]
[315445906,1709039475097,-197.0,0.00023829,2]
[315445907,1709039475106,-150.0,0.00023835,2]
[315445908,1709039475115,-150.0,0.00023836,2]
[315445909,1709039475232,-927.51,0.00023856,2]
[315445910,1709039475242,-150.0,0.00023857,2]
[315445911,1709039475252,-150.0,0.00023882,2]
[315445912,1709039475261,-71814.0,0.0002389,2]
[315445913,1709039475270,-150.0,0.00023896,2]
[315445914,1709039475279,-1000.0,0.00023899,2]
[315445915,1709039475288,-927.51,0.00023899,2]
[315445916,1709039475297,-927.51,0.00023899,2]
[315445917,1709039475307,-738.75,0.00023899,2]
[315445918,1709039475316,-3416.36,0.00023899,2]
[315445919,1709039475325,-739.62,0.00023899,2]
[315445920,1709039475334,-500.0,0.00023899,2]
[315445921,1709039475344,-500.0,0.00023899,2]
[315445922,1709039475353,-500.0,0.00023899,2]
[315445923,1709039475363,-1323.85,0.00023899,2]
[315445924,1709039475372,-500.0,0.00023899,2]
[315445925,1709039475381,-1627.11,0.00023899,2]
[315445926,1709039475391,-622.23,0.00023899,2]
[315445927,1709039475400,-2796.93,0.00023899,2]
[315445928,1709039475410,-777.69,0.00023899,2]
[315445929,1709039475420,-502.47,0.00023899,2]
[315445930,1709039475429,-2166.21,0.00023899,2]
[315445931,1709039475438,-507.7,0.00023899,2]
[315445932,1709039475448,-2371.42,0.00023899,2]
[315445933,1709039475458,-814.15,0.00023899,2]
[315445934,1709039475468,-594.76,0.00023899,2]
[315445935,1709039475478,-1344.36,0.00023899,2]
[315445936,1709039475489,-871.25,0.00023899,2]
[315445937,1709039475499,-710.45,0.00023899,2]
[315445938,1709039475508,-28487.01560018,0.000239,2]
[315445939,1709039475517,-1805.355295,0.000239,2]
[315445940,1709039475527,-193.6326841,0.000239,2]
[315445941,1709039475537,-200.0,0.000239,2]
[315445942,1709039475547,-330.86924882,0.000239,2]
[315445943,1709039475557,-31932.36922427,0.000239,2]
[315445944,1709039475566,-162.62578285,0.000239,2]
[315445945,1709039475576,-12407.24794687,0.000239,2]
[315445946,1709039475585,-505.57644468,0.000239,2]
[315445947,1709039475596,-1385.99310056,0.000239,2]
[315445948,1709039475606,-423.34129905,0.000239,2]
[315445949,1709039475615,-1603.92486616,0.000239,2]
[315445950,1709039475626,-150.0,0.00023909,2]
[315445951,1709039475635,-1500.0,0.00023945,2]
[315445952,1709039475645,-927.51,0.00023949,2]
[315445953,1709039475654,-927.51,0.00023949,2]
[315445954,1709039475663,-927.51,0.00023949,2]
[315445955,1709039475673,-927.51,0.00023949,2]
[315445956,1709039475682,-927.51,0.00023949,2]
[315445957,1709039475693,-927.71904685,0.00023949,2]
[315445958,1709039475703,-150.0,0.00023972,2]
[315445959,1709039475713,-150.0,0.00023976,2]
[315445960,1709039475723,-413.51,0.00023977,2]
[315445961,1709039475732,-353.11,0.00023977,2]
[315445962,1709039475742,-153.94,0.00023977,2]
[315445963,1709039475751,-413.51,0.00023977,2]
[315445964,1709039475760,-604.089606,0.00023978,3]
[315445965,1709039475771,-541.66,0.00023983,2]
[315445966,1709039475784,-500.0,0.00023983,2]
[315445967,1709039475793,-500.0,0.00023983,2]
[315445968,1709039475803,-500.0,0.00023983,2]
[315445969,1709039475812,-628.22,0.00023983,2]
[315445970,1709039475822,-500.0,0.00023983,2]
[315445971,1709039475832,-718.07,0.00023983,2]
[315445972,1709039475841,-500.0,0.00023983,2]
[315445973,1709039475851,-431.23,0.00023983,2]